[Event "Early-Titled-Tuesday-Blitz-July-09-2024"]
[Site "Chess.com"]
[Date "2024.07.09"]
[Round "10"]
[White "HansOnTwitch"]
[Black "Beca95"]
[Result "1-0"]
[WhiteElo "3147"]
[BlackElo "3006"]
[TimeControl "180+1"]
[EndTime "9:57:54 PDT"]
[Termination "HansOnTwitch won on time"]

1. d4 {[%clk 0:03:00.9]} 1... Nf6 {[%clk 0:02:58.1]} 2. c4 {[%clk 0:03:00.6]}
2... e6 {[%clk 0:02:58.4]} 3. Nc3 {[%clk 0:02:59.7]} 3... c5 {[%clk 0:02:59]} 4.
d5 {[%clk 0:02:59.9]} 4... exd5 {[%clk 0:02:59.3]} 5. cxd5 {[%clk 0:03:00.2]}
5... d6 {[%clk 0:02:59.8]} 6. e4 {[%clk 0:03:00.6]} 6... g6 {[%clk 0:03:00.3]}
7. Nf3 {[%clk 0:03:00.8]} 7... a6 {[%clk 0:03:00.1]} 8. a4 {[%clk 0:02:58.5]}
8... Bg4 {[%clk 0:02:59.9]} 9. Be2 {[%clk 0:02:50]} 9... Bxf3 {[%clk 0:02:59.8]}
10. Bxf3 {[%clk 0:02:50.9]} 10... Nbd7 {[%clk 0:03:00]} 11. O-O {[%clk
0:02:50.9]} 11... Bg7 {[%clk 0:03:00.5]} 12. Re1 {[%clk 0:02:50.6]} 12... O-O
{[%clk 0:02:59.6]} 13. Bf4 {[%clk 0:02:50.5]} 13... Qe7 {[%clk 0:02:57.3]} 14.
h3 {[%clk 0:02:45.7]} 14... Rab8 {[%clk 0:02:52.6]} 15. Be2 {[%clk 0:02:30.2]}
15... Rfe8 {[%clk 0:02:49.4]} 16. Bf1 {[%clk 0:02:28.9]} 16... Nh5 {[%clk
0:02:46.3]} 17. Be3 {[%clk 0:02:18]} 17... Nhf6 {[%clk 0:02:46]} 18. Bg5 {[%clk
0:02:13.3]} 18... h6 {[%clk 0:02:42]} 19. Bd2 {[%clk 0:02:12.8]} 19... g5 {[%clk
0:02:40.5]} 20. Qc2 {[%clk 0:02:10.9]} 20... Ne5 {[%clk 0:02:39.6]} 21. Ne2
{[%clk 0:02:06.6]} 21... Nh5 {[%clk 0:02:39.5]} 22. a5 {[%clk 0:02:02.8]} 22...
Qf6 {[%clk 0:02:36.5]} 23. Ra3 {[%clk 0:01:56.5]} 23... b5 {[%clk 0:02:30.2]}
24. axb6 {[%clk 0:01:55.5]} 24... Rxb6 {[%clk 0:02:30.3]} 25. Bc3 {[%clk
0:01:52]} 25... Qg6 {[%clk 0:02:23.2]} 26. Rea1 {[%clk 0:01:32.5]} 26... Ra8
{[%clk 0:02:21.8]} 27. Ra4 {[%clk 0:01:25.1]} 27... g4 {[%clk 0:02:19.7]} 28. h4
{[%clk 0:01:09.3]} 28... Nd7 {[%clk 0:01:59.4]} 29. g3 {[%clk 0:01:04.9]} 29...
Bxc3 {[%clk 0:01:56.8]} 30. bxc3 {[%clk 0:01:04.3]} 30... Ne5 {[%clk 0:01:55.6]}
31. Bg2 {[%clk 0:01:02.2]} 31... Rab8 {[%clk 0:01:52.1]} 32. R4a2 {[%clk
0:01:00.2]} 32... Nf3+ {[%clk 0:01:38.5]} 33. Kh1 {[%clk 0:00:50.1]} 33... Qf6
{[%clk 0:01:37.2]} 34. Rf1 {[%clk 0:00:35.4]} 34... Ne5 {[%clk 0:01:22.9]} 35.
Ng1 {[%clk 0:00:33.4]} 35... Nf4 {[%clk 0:01:08.8]} 36. Qd2 {[%clk 0:00:27.7]}
36... Nxg2 {[%clk 0:00:52.2]} 37. Kxg2 {[%clk 0:00:28.6]} 37... Nf3 {[%clk
0:00:49]} 38. Qe2 {[%clk 0:00:20.5]} 38... Ne5 {[%clk 0:00:43.1]} 39. f4 {[%clk
0:00:17.8]} 39... gxf3+ {[%clk 0:00:43.1]} 40. Nxf3 {[%clk 0:00:18.1]} 40... Qg7
{[%clk 0:00:19.9]} 41. Nxe5 {[%clk 0:00:16.6]} 41... Qxe5 {[%clk 0:00:20.8]} 42.
Rf3 {[%clk 0:00:07.6]} 42... Rb1 {[%clk 0:00:18.6]} 43. Rf5 {[%clk 0:00:02.9]}
43... Qxc3 {[%clk 0:00:17.7]} 44. Qg4+ {[%clk 0:00:03.1]} 44... Qg7 {[%clk
0:00:17.7]} 45. Qxg7+ {[%clk 0:00:03]} 45... Kxg7 {[%clk 0:00:18.6]} 46. Rxa6
{[%clk 0:00:03.1]} 46... R8b2+ {[%clk 0:00:18.3]} 47. Kh3 {[%clk 0:00:03.4]}
47... Re1 {[%clk 0:00:16]} 48. Rxd6 {[%clk 0:00:02.1]} 48... Rxe4 {[%clk
0:00:15.8]} 49. Rd7 {[%clk 0:00:02.5]} 49... Re3 {[%clk 0:00:10.8]} 50. Rdxf7+
{[%clk 0:00:01.9]} 50... Kg8 {[%clk 0:00:10.9]} 51. Rf8+ {[%clk 0:00:02.4]}
51... Kg7 {[%clk 0:00:11.2]} 52. R5f7+ {[%clk 0:00:03.1]} 52... Kg6 {[%clk
0:00:11.1]} 53. h5+ {[%clk 0:00:04]} 53... Kxh5 {[%clk 0:00:10.3]} 54. Rg7
{[%clk 0:00:04.7]} 1-0

[Event "Early-Titled-Tuesday-Blitz-July-09-2024"]
[Site "Chess.com"]
[Date "2024.07.09"]
[Round "10"]
[White "yaguigor"]
[Black "RobertoJBM"]
[Result "1/2-1/2"]
[WhiteElo "2623"]
[BlackElo "2832"]
[TimeControl "180+1"]
[EndTime "9:57:54 PDT"]
[Termination "Game drawn - insufficient material"]

1. e4 {[%clk 0:02:56]} 1... c6 {[%clk 0:02:58.9]} 2. d4 {[%clk 0:02:55.4]} 2...
d5 {[%clk 0:02:59.8]} 3. e5 {[%clk 0:02:55.5]} 3... Bf5 {[%clk 0:02:59.3]} 4. h4
{[%clk 0:02:55.3]} 4... Qb6 {[%clk 0:02:58.9]} 5. Nc3 {[%clk 0:02:53.9]} 5... h6
{[%clk 0:02:57.4]} 6. g4 {[%clk 0:02:43.2]} 6... Bd7 {[%clk 0:02:57.2]} 7. h5
{[%clk 0:02:37.5]} 7... e6 {[%clk 0:02:57.3]} 8. a3 {[%clk 0:02:35.3]} 8... c5
{[%clk 0:02:56.6]} 9. Nf3 {[%clk 0:02:19.3]} 9... Nc6 {[%clk 0:02:37.5]} 10.
dxc5 {[%clk 0:01:48.2]} 10... Bxc5 {[%clk 0:02:36.1]} 11. Qd2 {[%clk 0:01:48.1]}
11... Nd4 {[%clk 0:02:31]} 12. Bg2 {[%clk 0:01:39.5]} 12... Ne7 {[%clk
0:02:22.8]} 13. b4 {[%clk 0:01:31.6]} 13... Nxf3+ {[%clk 0:02:22.4]} 14. Bxf3
{[%clk 0:01:32.5]} 14... Bd4 {[%clk 0:02:21.9]} 15. Bb2 {[%clk 0:01:30.5]} 15...
Bxe5 {[%clk 0:01:50]} 16. Nxd5 {[%clk 0:01:27.1]} 16... Qd6 {[%clk 0:01:48.4]}
17. Nc3 {[%clk 0:00:34.7]} 17... Qxd2+ {[%clk 0:01:39.4]} 18. Kxd2 {[%clk
0:00:35.6]} 18... O-O-O {[%clk 0:01:36.4]} 19. Ke3 {[%clk 0:00:28.1]} 19... Bc6
{[%clk 0:01:30.7]} 20. Rad1 {[%clk 0:00:21]} 20... Bxf3 {[%clk 0:01:20.5]} 21.
Kxf3 {[%clk 0:00:20.1]} 21... Nc6 {[%clk 0:01:20.7]} 22. Na4 {[%clk 0:00:15.9]}
22... Bxb2 {[%clk 0:01:18.5]} 23. Nxb2 {[%clk 0:00:15]} 23... Rxd1 {[%clk
0:01:00]} 24. Rxd1 {[%clk 0:00:13.8]} 24... Rd8 {[%clk 0:01:00.9]} 25. Rxd8+
{[%clk 0:00:13.1]} 25... Kxd8 {[%clk 0:01:01.8]} 26. Ke4 {[%clk 0:00:13.1]}
26... g6 {[%clk 0:00:55.5]} 27. hxg6 {[%clk 0:00:11.7]} 27... fxg6 {[%clk
0:00:56.4]} 28. Nd3 {[%clk 0:00:11.3]} 28... Ke7 {[%clk 0:00:54.6]} 29. c4
{[%clk 0:00:10]} 29... b6 {[%clk 0:00:52.4]} 30. Nf4 {[%clk 0:00:08.7]} 30...
Kf6 {[%clk 0:00:51]} 31. f3 {[%clk 0:00:08.4]} 31... Ne5 {[%clk 0:00:46.6]} 32.
c5 {[%clk 0:00:07.2]} 32... bxc5 {[%clk 0:00:42.3]} 33. bxc5 {[%clk 0:00:08.1]}
33... Nc6 {[%clk 0:00:42.3]} 34. Nd3 {[%clk 0:00:07.7]} 34... a5 {[%clk
0:00:34.4]} 35. f4 {[%clk 0:00:06.7]} 35... h5 {[%clk 0:00:34.1]} 36. Kf3 {[%clk
0:00:06.9]} 36... e5 {[%clk 0:00:31.3]} 37. Kg3 {[%clk 0:00:02.5]} 37... e4
{[%clk 0:00:12.8]} 38. Nf2 {[%clk 0:00:02.5]} 38... e3 {[%clk 0:00:13.2]} 39.
Ne4+ {[%clk 0:00:03.2]} 39... Ke6 {[%clk 0:00:13.6]} 40. Nc3 {[%clk 0:00:03.9]}
40... Nd4 {[%clk 0:00:13.1]} 41. gxh5 {[%clk 0:00:03.5]} 41... gxh5 {[%clk
0:00:13.4]} 42. Kg2 {[%clk 0:00:03.5]} 42... Kf5 {[%clk 0:00:13]} 43. c6 {[%clk
0:00:02.8]} 43... Nxc6 {[%clk 0:00:12.2]} 44. Kf3 {[%clk 0:00:02.5]} 44... h4
{[%clk 0:00:12.2]} 45. Kxe3 {[%clk 0:00:03]} 45... h3 {[%clk 0:00:12.6]} 46. Ne2
{[%clk 0:00:03.5]} 46... Kg4 {[%clk 0:00:12.1]} 47. Kf2 {[%clk 0:00:03.2]} 47...
Ne7 {[%clk 0:00:11.3]} 48. Kg1 {[%clk 0:00:02.8]} 48... Nd5 {[%clk 0:00:11]} 49.
Kh2 {[%clk 0:00:02.9]} 49... Ne3 {[%clk 0:00:11.4]} 50. a4 {[%clk 0:00:02.3]}
50... Nf5 {[%clk 0:00:11.3]} 51. Nc3 {[%clk 0:00:02]} 51... Nd4 {[%clk
0:00:10.8]} 52. Nd5 {[%clk 0:00:01.6]} 52... Nc6 {[%clk 0:00:11.3]} 53. Ne3+
{[%clk 0:00:01.5]} 53... Kxf4 {[%clk 0:00:11.5]} 54. Nc4 {[%clk 0:00:02.4]}
54... Kg4 {[%clk 0:00:11]} 55. Ne3+ {[%clk 0:00:02.6]} 55... Kh4 {[%clk
0:00:10.7]} 56. Nc4 {[%clk 0:00:03.5]} 56... Kg4 {[%clk 0:00:09.6]} 57. Ne3+
{[%clk 0:00:03.5]} 57... Kf4 {[%clk 0:00:09.4]} 58. Nc4 {[%clk 0:00:04.2]} 58...
Ke4 {[%clk 0:00:07.7]} 59. Nxa5 {[%clk 0:00:03.7]} 59... Nxa5 {[%clk 0:00:08.6]}
60. Kxh3 {[%clk 0:00:03.9]} 60... Kd4 {[%clk 0:00:09.4]} 61. Kh4 {[%clk
0:00:03.3]} 61... Kc4 {[%clk 0:00:10.3]} 62. Kg5 {[%clk 0:00:03.8]} 62... Kb4
{[%clk 0:00:11.2]} 63. Kg6 {[%clk 0:00:04.4]} 63... Kxa4 {[%clk 0:00:12.1]}
1/2-1/2

[Event "Early-Titled-Tuesday-Blitz-July-09-2024"]
[Site "Chess.com"]
[Date "2024.07.09"]
[Round "10"]
[White "luggevoila"]
[Black "GMMikhailKazakov"]
[Result "1/2-1/2"]
[WhiteElo "2343"]
[BlackElo "2509"]
[TimeControl "180+1"]
[EndTime "9:58:01 PDT"]
[Termination "Game drawn - insufficient material"]

1. e4 {[%clk 0:03:00.9]} 1... e5 {[%clk 0:02:57.3]} 2. Nf3 {[%clk 0:03:00.5]}
2... Nc6 {[%clk 0:02:57.4]} 3. Bb5 {[%clk 0:02:58.2]} 3... a6 {[%clk 0:02:57.1]}
4. Ba4 {[%clk 0:02:58.2]} 4... Nf6 {[%clk 0:02:56.9]} 5. O-O {[%clk 0:02:58.4]}
5... Be7 {[%clk 0:02:55.8]} 6. Re1 {[%clk 0:02:58.8]} 6... b5 {[%clk 0:02:53.3]}
7. Bb3 {[%clk 0:02:58.5]} 7... d6 {[%clk 0:02:54.2]} 8. c3 {[%clk 0:02:56.6]}
8... O-O {[%clk 0:02:53.4]} 9. h3 {[%clk 0:02:56.6]} 9... Be6 {[%clk 0:02:48.7]}
10. d4 {[%clk 0:02:50.6]} 10... Bxb3 {[%clk 0:02:46.5]} 11. axb3 {[%clk
0:02:45.5]} 11... exd4 {[%clk 0:02:46.2]} 12. cxd4 {[%clk 0:02:45.7]} 12... d5
{[%clk 0:02:46.1]} 13. e5 {[%clk 0:02:43.2]} 13... Ne4 {[%clk 0:02:46.3]} 14.
Nc3 {[%clk 0:02:37.4]} 14... f5 {[%clk 0:02:39.8]} 15. Be3 {[%clk 0:02:20.8]}
15... Bb4 {[%clk 0:02:34.8]} 16. Rc1 {[%clk 0:02:18.3]} 16... Ne7 {[%clk
0:02:34.3]} 17. Bd2 {[%clk 0:02:15.2]} 17... Bxc3 {[%clk 0:02:30.2]} 18. bxc3
{[%clk 0:02:10.1]} 18... f4 {[%clk 0:02:26.8]} 19. c4 {[%clk 0:02:03.2]} 19...
c6 {[%clk 0:02:22.7]} 20. Bb4 {[%clk 0:01:55.3]} 20... h6 {[%clk 0:02:16.1]} 21.
cxd5 {[%clk 0:01:52.2]} 21... cxd5 {[%clk 0:02:17]} 22. Nd2 {[%clk 0:01:44.9]}
22... Nxd2 {[%clk 0:00:51.5]} 23. Qxd2 {[%clk 0:01:44.9]} 23... f3 {[%clk
0:00:51.9]} 24. g3 {[%clk 0:01:41.3]} 24... Rf7 {[%clk 0:00:46.6]} 25. Re3
{[%clk 0:01:14.8]} 25... Qe8 {[%clk 0:00:36.2]} 26. Bxe7 {[%clk 0:01:03.9]}
26... Qxe7 {[%clk 0:00:35.1]} 27. Rcc3 {[%clk 0:01:00.3]} 27... Raf8 {[%clk
0:00:34]} 28. Qd1 {[%clk 0:00:56.5]} 28... Qe6 {[%clk 0:00:28.7]} 29. Kh2 {[%clk
0:00:36.5]} 29... Qf5 {[%clk 0:00:28.7]} 30. e6 {[%clk 0:00:35.2]} 30... Re7
{[%clk 0:00:25.2]} 31. Rxf3 {[%clk 0:00:33]} 31... Qxe6 {[%clk 0:00:24.1]} 32.
Rxf8+ {[%clk 0:00:32.1]} 32... Kxf8 {[%clk 0:00:25]} 33. Re3 {[%clk 0:00:23.7]}
33... Qd6 {[%clk 0:00:19.7]} 34. Qf3+ {[%clk 0:00:21.8]} 34... Ke8 {[%clk
0:00:17.7]} 35. Qh5+ {[%clk 0:00:19.4]} 35... Kd8 {[%clk 0:00:14.4]} 36. Qh4
{[%clk 0:00:17.3]} 36... Ke8 {[%clk 0:00:12.3]} 37. Qh5+ {[%clk 0:00:16.9]}
37... Kd8 {[%clk 0:00:12.2]} 38. Qh4 {[%clk 0:00:15.9]} 38... Qf6 {[%clk
0:00:11.1]} 39. Qxf6 {[%clk 0:00:10]} 39... gxf6 {[%clk 0:00:12]} 40. Rf3 {[%clk
0:00:08.7]} 40... Re6 {[%clk 0:00:10.8]} 41. h4 {[%clk 0:00:07.8]} 41... a5
{[%clk 0:00:10.9]} 42. Kh3 {[%clk 0:00:07.5]} 42... a4 {[%clk 0:00:10.6]} 43.
bxa4 {[%clk 0:00:05.6]} 43... bxa4 {[%clk 0:00:11.5]} 44. Kg4 {[%clk 0:00:05.7]}
44... Ra6 {[%clk 0:00:10.8]} 45. Ra3 {[%clk 0:00:04.7]} 45... Kc7 {[%clk
0:00:11]} 46. Kh5 {[%clk 0:00:03.9]} 46... f5 {[%clk 0:00:09.9]} 47. f3 {[%clk
0:00:01.6]} 47... Kc6 {[%clk 0:00:09.6]} 48. g4 {[%clk 0:00:02.2]} 48... fxg4
{[%clk 0:00:09.6]} 49. fxg4 {[%clk 0:00:02.8]} 49... Kb5 {[%clk 0:00:10.5]} 50.
g5 {[%clk 0:00:03.3]} 50... hxg5 {[%clk 0:00:10.9]} 51. hxg5 {[%clk 0:00:03.9]}
51... Kb4 {[%clk 0:00:11.5]} 52. Ra1 {[%clk 0:00:04]} 52... Kb3 {[%clk
0:00:10.9]} 53. g6 {[%clk 0:00:04]} 53... Kb2 {[%clk 0:00:11]} 54. Rg1 {[%clk
0:00:03.4]} 54... Ra8 {[%clk 0:00:05.1]} 55. g7 {[%clk 0:00:02]} 55... Rg8
{[%clk 0:00:05.1]} 56. Kh6 {[%clk 0:00:02.3]} 56... a3 {[%clk 0:00:05.1]} 57.
Kh7 {[%clk 0:00:02.4]} 57... Rxg7+ {[%clk 0:00:03.8]} 58. Kxg7 {[%clk
0:00:02.8]} 58... Kc3 {[%clk 0:00:04.7]} 59. Kf6 {[%clk 0:00:02.5]} 59... Kxd4
{[%clk 0:00:04.7]} 60. Ke6 {[%clk 0:00:02.8]} 60... Kc4 {[%clk 0:00:04.3]} 61.
Ra1 {[%clk 0:00:02.1]} 61... Kb3 {[%clk 0:00:04.1]} 62. Kxd5 {[%clk 0:00:02.3]}
62... Kb2 {[%clk 0:00:04.5]} 63. Rg1 {[%clk 0:00:02.3]} 63... a2 {[%clk
0:00:05.1]} 64. Rg2+ {[%clk 0:00:02.9]} 64... Kb3 {[%clk 0:00:05.5]} 65. Rxa2
{[%clk 0:00:02.7]} 65... Kxa2 {[%clk 0:00:06.4]} 1/2-1/2

[Event "Early-Titled-Tuesday-Blitz-July-09-2024"]
[Site "Chess.com"]
[Date "2024.07.09"]
[Round "10"]
[White "vladgoncharov"]
[Black "bubeliang"]
[Result "1/2-1/2"]
[WhiteElo "2668"]
[BlackElo "2809"]
[TimeControl "180+1"]
[EndTime "9:58:04 PDT"]
[Termination "Game drawn - insufficient material"]

1. d4 {[%clk 0:03:00.9]} 1... d5 {[%clk 0:02:58.7]} 2. c4 {[%clk 0:02:59.9]}
2... e6 {[%clk 0:02:58.4]} 3. Nc3 {[%clk 0:02:59.6]} 3... Nf6 {[%clk 0:02:57.5]}
4. Bg5 {[%clk 0:02:58.2]} 4... Be7 {[%clk 0:02:55.8]} 5. e3 {[%clk 0:02:58.1]}
5... O-O {[%clk 0:02:55.1]} 6. Rc1 {[%clk 0:02:57.6]} 6... h6 {[%clk 0:02:54.6]}
7. Bh4 {[%clk 0:02:52.8]} 7... Nbd7 {[%clk 0:02:50.6]} 8. cxd5 {[%clk
0:02:48.9]} 8... Nxd5 {[%clk 0:02:47.7]} 9. Nxd5 {[%clk 0:02:44.9]} 9... Bxh4
{[%clk 0:02:42.2]} 10. Nxc7 {[%clk 0:02:40.3]} 10... Rb8 {[%clk 0:02:42.2]} 11.
Nb5 {[%clk 0:02:38]} 11... Qb6 {[%clk 0:02:39.6]} 12. Qb3 {[%clk 0:02:32.2]}
12... e5 {[%clk 0:02:37.2]} 13. Nf3 {[%clk 0:02:24.1]} 13... Bf6 {[%clk
0:02:33.8]} 14. Bc4 {[%clk 0:02:20]} 14... a6 {[%clk 0:02:31.1]} 15. Nc7 {[%clk
0:01:56]} 15... exd4 {[%clk 0:02:19.6]} 16. exd4 {[%clk 0:01:55.7]} 16... Bxd4
{[%clk 0:02:04.5]} 17. Qxb6 {[%clk 0:01:23]} 17... Bxb6 {[%clk 0:02:02.3]} 18.
Nd5 {[%clk 0:01:23.1]} 18... Ba5+ {[%clk 0:02:01.9]} 19. b4 {[%clk 0:01:22.2]}
19... Bd8 {[%clk 0:02:01.8]} 20. O-O {[%clk 0:01:18.9]} 20... b5 {[%clk
0:02:00.3]} 21. Bb3 {[%clk 0:01:16.8]} 21... Bb7 {[%clk 0:01:59]} 22. Rfd1
{[%clk 0:01:09.2]} 22... Nf6 {[%clk 0:01:56.6]} 23. Ne5 {[%clk 0:01:01.4]} 23...
Rc8 {[%clk 0:01:38.9]} 24. Rxc8 {[%clk 0:00:50.9]} 24... Bxc8 {[%clk 0:01:39.8]}
25. Nc6 {[%clk 0:00:46.1]} 25... Nxd5 {[%clk 0:01:37.5]} 26. Nxd8 {[%clk
0:00:42.2]} 26... Rxd8 {[%clk 0:01:29.6]} 27. Rxd5 {[%clk 0:00:41.1]} 27... Re8
{[%clk 0:01:28]} 28. f3 {[%clk 0:00:37.2]} 28... Be6 {[%clk 0:01:20.6]} 29. Re5
{[%clk 0:00:37.3]} 29... Kf8 {[%clk 0:01:20.5]} 30. Bxe6 {[%clk 0:00:33.3]}
30... fxe6 {[%clk 0:01:15.7]} 31. Kf2 {[%clk 0:00:32.5]} 31... Ke7 {[%clk
0:01:13.3]} 32. Rc5 {[%clk 0:00:32.8]} 32... Rd8 {[%clk 0:01:13.7]} 33. Ke3
{[%clk 0:00:30.6]} 33... Rd6 {[%clk 0:01:11.6]} 34. Rc7+ {[%clk 0:00:30.3]}
34... Kf6 {[%clk 0:01:11.9]} 35. h4 {[%clk 0:00:26.9]} 35... h5 {[%clk
0:01:09.1]} 36. Rc5 {[%clk 0:00:24.1]} 36... g6 {[%clk 0:01:08.2]} 37. g4 {[%clk
0:00:24.1]} 37... hxg4 {[%clk 0:01:07.3]} 38. fxg4 {[%clk 0:00:24.2]} 38... e5
{[%clk 0:01:07.9]} 39. a3 {[%clk 0:00:24]} 39... Ke6 {[%clk 0:01:05.6]} 40. Rc8
{[%clk 0:00:20.1]} 40... Rd4 {[%clk 0:00:50.8]} 41. h5 {[%clk 0:00:18.1]} 41...
Rxg4 {[%clk 0:00:47.3]} 42. h6 {[%clk 0:00:15.9]} 42... Rh4 {[%clk 0:00:47.3]}
43. Rh8 {[%clk 0:00:14.5]} 43... Kf5 {[%clk 0:00:23.9]} 44. Kf3 {[%clk
0:00:09.8]} 44... Kg5 {[%clk 0:00:17.2]} 45. h7 {[%clk 0:00:09.3]} 45... Kh6
{[%clk 0:00:11.1]} 46. Ra8 {[%clk 0:00:08.5]} 46... Kxh7 {[%clk 0:00:09.6]} 47.
Rxa6 {[%clk 0:00:08.8]} 47... Kh6 {[%clk 0:00:06.2]} 48. Re6 {[%clk 0:00:08.4]}
48... Rh3+ {[%clk 0:00:05.2]} 49. Ke4 {[%clk 0:00:08.7]} 49... Rxa3 {[%clk
0:00:04.2]} 50. Rxe5 {[%clk 0:00:08.7]} 50... g5 {[%clk 0:00:04]} 51. Rxb5
{[%clk 0:00:08.6]} 51... Kh5 {[%clk 0:00:04.4]} 52. Rb8 {[%clk 0:00:07.6]} 52...
Rb3 {[%clk 0:00:04.6]} 53. Kd4 {[%clk 0:00:07.3]} 53... g4 {[%clk 0:00:04.3]}
54. Kc4 {[%clk 0:00:07.6]} 54... Rb1 {[%clk 0:00:04.6]} 55. b5 {[%clk
0:00:07.5]} 55... g3 {[%clk 0:00:04.9]} 56. Rg8 {[%clk 0:00:07.5]} 56... Kh4
{[%clk 0:00:05]} 57. Kc5 {[%clk 0:00:08]} 57... Kh3 {[%clk 0:00:02.6]} 58. b6
{[%clk 0:00:08.2]} 58... g2 {[%clk 0:00:03.2]} 59. Rxg2 {[%clk 0:00:07.9]} 59...
Kxg2 {[%clk 0:00:02.7]} 60. Kc6 {[%clk 0:00:08.3]} 60... Kf3 {[%clk 0:00:02.8]}
61. b7 {[%clk 0:00:08.8]} 61... Ke4 {[%clk 0:00:03.5]} 62. Kc7 {[%clk
0:00:09.1]} 62... Kd5 {[%clk 0:00:04.4]} 63. b8=Q {[%clk 0:00:08.9]} 63... Rxb8
{[%clk 0:00:05.3]} 64. Kxb8 {[%clk 0:00:09.2]} 1/2-1/2

[Event "Early-Titled-Tuesday-Blitz-July-09-2024"]
[Site "Chess.com"]
[Date "2024.07.09"]
[Round "10"]
[White "jbking07"]
[Black "Austen48"]
[Result "1-0"]
[WhiteElo "2447"]
[BlackElo "2267"]
[TimeControl "180+1"]
[EndTime "9:58:06 PDT"]
[Termination "jbking07 won on time"]

1. e4 {[%clk 0:03:00.9]} 1... e5 {[%clk 0:02:57.8]} 2. Nf3 {[%clk 0:03:00.8]}
2... Nc6 {[%clk 0:02:56.2]} 3. d4 {[%clk 0:03:00.9]} 3... exd4 {[%clk
0:02:55.1]} 4. Nxd4 {[%clk 0:03:01.8]} 4... Nf6 {[%clk 0:02:53.2]} 5. Nxc6
{[%clk 0:03:01.7]} 5... bxc6 {[%clk 0:02:51.1]} 6. Qe2 {[%clk 0:03:02]} 6... Qe7
{[%clk 0:02:36]} 7. Nc3 {[%clk 0:03:01.1]} 7... g6 {[%clk 0:02:32.1]} 8. Bg5
{[%clk 0:02:54.7]} 8... h6 {[%clk 0:02:31.6]} 9. Bh4 {[%clk 0:02:53.7]} 9... g5
{[%clk 0:02:28.7]} 10. Bg3 {[%clk 0:02:53.5]} 10... d6 {[%clk 0:02:28.4]} 11. e5
{[%clk 0:02:43]} 11... Nd5 {[%clk 0:02:17.1]} 12. Nxd5 {[%clk 0:02:38.6]} 12...
cxd5 {[%clk 0:02:16.8]} 13. exd6 {[%clk 0:02:38.6]} 13... Qxe2+ {[%clk
0:02:10.8]} 14. Bxe2 {[%clk 0:02:39.5]} 14... cxd6 {[%clk 0:02:05.9]} 15. O-O-O
{[%clk 0:02:39.4]} 15... Be6 {[%clk 0:02:04.4]} 16. Bf3 {[%clk 0:02:39.5]} 16...
Kd7 {[%clk 0:01:54.9]} 17. Bxd5 {[%clk 0:02:34.4]} 17... Rb8 {[%clk 0:01:53.4]}
18. h4 {[%clk 0:02:20.8]} 18... g4 {[%clk 0:01:50.6]} 19. c3 {[%clk 0:02:20.1]}
19... h5 {[%clk 0:01:49.5]} 20. Bf4 {[%clk 0:02:08.1]} 20... Rg8 {[%clk
0:01:45.7]} 21. Rd2 {[%clk 0:01:58.3]} 21... Rg6 {[%clk 0:01:39.4]} 22. Rhd1
{[%clk 0:01:50.5]} 22... Rb6 {[%clk 0:01:35.3]} 23. Be4 {[%clk 0:01:44.1]} 23...
f5 {[%clk 0:01:30.3]} 24. Bb1 {[%clk 0:01:39.3]} 24... Be7 {[%clk 0:01:24.6]}
25. g3 {[%clk 0:01:38.6]} 25... Rg8 {[%clk 0:01:17.6]} 26. Be3 {[%clk
0:01:34.3]} 26... Ra6 {[%clk 0:01:15.3]} 27. a3 {[%clk 0:01:30.7]} 27... Rc8
{[%clk 0:01:11.1]} 28. Bd3 {[%clk 0:01:25.2]} 28... Ra5 {[%clk 0:01:07.6]} 29.
Bf4 {[%clk 0:01:17.7]} 29... d5 {[%clk 0:01:07]} 30. Re1 {[%clk 0:01:08.2]}
30... Bxa3 {[%clk 0:00:57]} 31. bxa3 {[%clk 0:01:01.4]} 31... Rxc3+ {[%clk
0:00:57.3]} 32. Rc2 {[%clk 0:00:46.2]} 32... Raxa3 {[%clk 0:00:51.5]} 33. Rxc3
{[%clk 0:00:44.4]} 33... Rxc3+ {[%clk 0:00:51.2]} 34. Kd2 {[%clk 0:00:45.3]}
34... Ra3 {[%clk 0:00:40.8]} 35. Rb1 {[%clk 0:00:44.2]} 35... d4 {[%clk
0:00:34.5]} 36. Rb7+ {[%clk 0:00:37]} 36... Kc6 {[%clk 0:00:34.2]} 37. Re7
{[%clk 0:00:33.3]} 37... Ra2+ {[%clk 0:00:32.7]} 38. Kc1 {[%clk 0:00:31.8]}
38... Ra1+ {[%clk 0:00:23.3]} 39. Kb2 {[%clk 0:00:31.7]} 39... Ra2+ {[%clk
0:00:23.4]} 40. Kb1 {[%clk 0:00:31.8]} 40... Bb3 {[%clk 0:00:12.5]} 41. Bxf5
{[%clk 0:00:30.1]} 41... Rxf2 {[%clk 0:00:12.5]} 42. Rxa7 {[%clk 0:00:25.2]}
42... Rf1+ {[%clk 0:00:10.5]} 43. Kb2 {[%clk 0:00:25.1]} 43... Bc4 {[%clk
0:00:10.4]} 44. Be4+ {[%clk 0:00:23.6]} 44... Kb5 {[%clk 0:00:10.2]} 45. Rb7+
{[%clk 0:00:22.8]} 45... Ka5 {[%clk 0:00:10.2]} 46. Bc7+ {[%clk 0:00:21]} 46...
Ka6 {[%clk 0:00:10.4]} 47. Rb6+ {[%clk 0:00:18.5]} 47... Ka7 {[%clk 0:00:11]}
48. Rb4 {[%clk 0:00:18.2]} 48... Rf2+ {[%clk 0:00:10.7]} 49. Kc1 {[%clk
0:00:14.9]} 49... Be6 {[%clk 0:00:08.3]} 50. Rxd4 {[%clk 0:00:12.1]} 50... Ka6
{[%clk 0:00:06.9]} 51. Bf4 {[%clk 0:00:11.8]} 51... Kb5 {[%clk 0:00:06.5]} 52.
Bd5 {[%clk 0:00:11.6]} 52... Bf5 {[%clk 0:00:05.4]} 53. Bf7 {[%clk 0:00:11.3]}
53... Rc2+ {[%clk 0:00:04.6]} 54. Kd1 {[%clk 0:00:11.6]} 54... Rc5 {[%clk
0:00:04]} 55. Rd5 {[%clk 0:00:11.3]} 55... Rxd5+ {[%clk 0:00:04.2]} 56. Bxd5
{[%clk 0:00:12.2]} 56... Bg6 {[%clk 0:00:04.2]} 57. Be6 {[%clk 0:00:12]} 57...
Kc5 {[%clk 0:00:04.3]} 58. Kd2 {[%clk 0:00:12.1]} 58... Kd4 {[%clk 0:00:03.7]}
59. Bd7 {[%clk 0:00:10.4]} 59... Ke4 {[%clk 0:00:03.1]} 60. Kc3 {[%clk
0:00:09.4]} 60... Kf3 {[%clk 0:00:03.3]} 61. Kd4 {[%clk 0:00:09.3]} 61... Kg2
{[%clk 0:00:02.5]} 62. Ke5 {[%clk 0:00:09.5]} 62... Kh3 {[%clk 0:00:03]} 63. Kf6
{[%clk 0:00:09.5]} 63... Bd3 {[%clk 0:00:01.7]} 64. Bf5 {[%clk 0:00:08.4]} 64...
Bb5 {[%clk 0:00:01]} 65. Kg5 {[%clk 0:00:08.4]} 1-0